[Event "Early-Titled-Tuesday-Blitz-February-06-2024"]
[Site "Chess.com"]
[Date "2024.02.06"]
[Round "8"]
[White "Leebit02"]
[Black "Flaccidmoves"]
[Result "0-1"]
[WhiteElo "2552"]
[BlackElo "2460"]
[TimeControl "180+1"]
[EndTime "9:27:39 PST"]
[Termination "Flaccidmoves won by resignation"]

1. d4 {[%clk 0:02:56.5]} 1... Nf6 {[%clk 0:02:58.6]} 2. Nf3 {[%clk 0:02:56.4]}
2... g6 {[%clk 0:02:59.1]} 3. Nbd2 {[%clk 0:02:56.6]} 3... d5 {[%clk 0:02:53.9]}
4. b3 {[%clk 0:02:55.8]} 4... c5 {[%clk 0:02:50]} 5. dxc5 {[%clk 0:02:54.6]}
5... Bg7 {[%clk 0:02:44.4]} 6. Bb2 {[%clk 0:02:54.8]} 6... Na6 {[%clk
0:02:39.4]} 7. e3 {[%clk 0:02:44.7]} 7... Nxc5 {[%clk 0:02:36.9]} 8. Be2 {[%clk
0:02:44.7]} 8... O-O {[%clk 0:02:36.6]} 9. O-O {[%clk 0:02:44.7]} 9... b6 {[%clk
0:02:31.7]} 10. a4 {[%clk 0:02:13]} 10... Bb7 {[%clk 0:02:26.2]} 11. b4 {[%clk
0:01:43.3]} 11... Nce4 {[%clk 0:02:21.7]} 12. Nxe4 {[%clk 0:01:43]} 12... dxe4
{[%clk 0:02:07.2]} 13. Nd4 {[%clk 0:01:29.6]} 13... Nd5 {[%clk 0:02:04.7]} 14.
b5 {[%clk 0:01:19.9]} 14... Rc8 {[%clk 0:01:58.4]} 15. c4 {[%clk 0:01:09.2]}
15... Nb4 {[%clk 0:01:55.1]} 16. Qb3 {[%clk 0:01:00.9]} 16... Nd3 {[%clk
0:01:52.8]} 17. Bc3 {[%clk 0:00:46.6]} 17... Qc7 {[%clk 0:01:44.2]} 18. Bxd3
{[%clk 0:00:29.7]} 18... exd3 {[%clk 0:01:45.1]} 19. Nc6 {[%clk 0:00:30]} 19...
Bxc6 {[%clk 0:01:38.3]} 20. Bxg7 {[%clk 0:00:29.5]} 20... Kxg7 {[%clk
0:01:31.5]} 21. bxc6 {[%clk 0:00:29.7]} 21... Qxc6 {[%clk 0:01:24.4]} 22. Qxd3
{[%clk 0:00:28.9]} 22... Qxc4 {[%clk 0:01:22.6]} 23. Qxc4 {[%clk 0:00:24.6]}
23... Rxc4 {[%clk 0:01:23.5]} 24. a5 {[%clk 0:00:25.4]} 24... b5 {[%clk
0:01:15.6]} 25. a6 {[%clk 0:00:23]} 25... Rd8 {[%clk 0:01:13]} 26. Ra5 {[%clk
0:00:16]} 26... b4 {[%clk 0:01:03]} 27. Rb5 {[%clk 0:00:15.6]} 27... Rd6 {[%clk
0:01:00.2]} 28. Ra5 {[%clk 0:00:14.7]} 28... Rb6 {[%clk 0:00:56.8]} 29. Rb1
{[%clk 0:00:14.5]} 29... b3 {[%clk 0:00:56.4]} 30. Kf1 {[%clk 0:00:15]} 30...
Rc2 {[%clk 0:00:54]} 31. Ke1 {[%clk 0:00:12.3]} 31... b2 {[%clk 0:00:53.4]} 32.
Rd5 {[%clk 0:00:10.7]} 32... Rxa6 {[%clk 0:00:46.3]} 33. Rb5 {[%clk 0:00:06.9]}
33... Rc1+ {[%clk 0:00:45.7]} 0-1

[Event "Early-Titled-Tuesday-Blitz-February-06-2024"]
[Site "Chess.com"]
[Date "2024.02.06"]
[Round "8"]
[White "Licancabur"]
[Black "FMCarmona"]
[Result "1-0"]
[WhiteElo "2400"]
[BlackElo "2140"]
[TimeControl "180+1"]
[EndTime "9:27:39 PST"]
[Termination "Licancabur won on time"]

1. d4 {[%clk 0:03:00]} 1... d5 {[%clk 0:02:59.6]} 2. Bg5 {[%clk 0:02:58.6]} 2...
Nd7 {[%clk 0:02:57.5]} 3. c4 {[%clk 0:02:50.9]} 3... dxc4 {[%clk 0:02:30.7]} 4.
Nc3 {[%clk 0:02:43]} 4... c5 {[%clk 0:02:28.1]} 5. d5 {[%clk 0:02:32.2]} 5...
Qa5 {[%clk 0:02:27.6]} 6. a4 {[%clk 0:02:22.3]} 6... g6 {[%clk 0:02:20.5]} 7. e4
{[%clk 0:02:19]} 7... Bg7 {[%clk 0:02:19.4]} 8. Bd2 {[%clk 0:02:17.9]} 8... Ne5
{[%clk 0:02:08.5]} 9. Qc2 {[%clk 0:01:47.7]} 9... Nf6 {[%clk 0:01:47.7]} 10. f4
{[%clk 0:01:45.5]} 10... Nd3+ {[%clk 0:01:46.6]} 11. Bxd3 {[%clk 0:01:45.2]}
11... cxd3 {[%clk 0:01:46.9]} 12. Qxd3 {[%clk 0:01:44.9]} 12... O-O {[%clk
0:01:43.4]} 13. Nf3 {[%clk 0:01:41.4]} 13... Qb4 {[%clk 0:01:20.1]} 14. O-O
{[%clk 0:01:29.3]} 14... Bd7 {[%clk 0:00:59.5]} 15. Ne5 {[%clk 0:01:23.6]} 15...
Rfd8 {[%clk 0:00:43.2]} 16. Nc4 {[%clk 0:01:01.1]} 16... Nh5 {[%clk 0:00:34.9]}
17. Ne2 {[%clk 0:00:44.1]} 17... b5 {[%clk 0:00:26.3]} 18. Bxb4 {[%clk
0:00:38.7]} 18... bxc4 {[%clk 0:00:26.6]} 19. Qxc4 {[%clk 0:00:38.4]} 19... cxb4
{[%clk 0:00:27.1]} 20. e5 {[%clk 0:00:33.7]} 20... Rdc8 {[%clk 0:00:23.4]} 21.
Qxb4 {[%clk 0:00:30.2]} 21... Rab8 {[%clk 0:00:23.9]} 22. Qd2 {[%clk 0:00:29.2]}
1-0

[Event "Early-Titled-Tuesday-Blitz-February-06-2024"]
[Site "Chess.com"]
[Date "2024.02.06"]
[Round "8"]
[White "smotherhubbard"]
[Black "ural58"]
[Result "1-0"]
[WhiteElo "2375"]
[BlackElo "2471"]
[TimeControl "180+1"]
[EndTime "9:27:47 PST"]
[Termination "smotherhubbard won on time"]

1. d4 {[%clk 0:03:00.9]} 1... d5 {[%clk 0:01:30.8]} 2. c4 {[%clk 0:02:31.4]}
2... e5 {[%clk 0:01:25.8]} 3. dxe5 {[%clk 0:02:29.8]} 3... d4 {[%clk 0:01:25.9]}
4. Nf3 {[%clk 0:02:29]} 4... Nc6 {[%clk 0:01:25.9]} 5. a3 {[%clk 0:02:29.2]}
5... g6 {[%clk 0:01:23.5]} 6. e3 {[%clk 0:02:28.9]} 6... Bg4 {[%clk 0:01:21.9]}
7. Be2 {[%clk 0:02:27]} 7... Bxf3 {[%clk 0:01:21.8]} 8. Bxf3 {[%clk 0:02:26.8]}
8... Nge7 {[%clk 0:01:21.9]} 9. O-O {[%clk 0:01:59.2]} 9... Bg7 {[%clk
0:01:11.6]} 10. exd4 {[%clk 0:01:58.2]} 10... Qxd4 {[%clk 0:01:09.9]} 11. Qxd4
{[%clk 0:01:47]} 11... Nxd4 {[%clk 0:01:09.7]} 12. Bxb7 {[%clk 0:01:47.1]} 12...
Ne2+ {[%clk 0:01:09.8]} 13. Kh1 {[%clk 0:01:42.6]} 13... Rb8 {[%clk 0:01:09.9]}
14. Bf3 {[%clk 0:01:31]} 14... Nxc1 {[%clk 0:01:09.5]} 15. Rxc1 {[%clk
0:01:31.6]} 15... Rxb2 {[%clk 0:01:08.9]} 16. Re1 {[%clk 0:01:27.5]} 16... Rxf2
{[%clk 0:01:06.4]} 17. Nc3 {[%clk 0:01:24.1]} 17... O-O {[%clk 0:01:05.1]} 18.
Rab1 {[%clk 0:01:22.9]} 18... Rc2 {[%clk 0:01:03.4]} 19. Nd5 {[%clk 0:01:21.3]}
19... Nf5 {[%clk 0:01:00.5]} 20. Rb7 {[%clk 0:01:17.3]} 20... Rxc4 {[%clk
0:00:59.3]} 21. Rxa7 {[%clk 0:01:14.7]} 21... c5 {[%clk 0:00:57.4]} 22. Rc7
{[%clk 0:01:12.4]} 22... Nd4 {[%clk 0:00:52.6]} 23. Be4 {[%clk 0:01:08.5]} 23...
Ne6 {[%clk 0:00:52.4]} 24. Rc6 {[%clk 0:01:07]} 24... Bxe5 {[%clk 0:00:46.4]}
25. Ne7+ {[%clk 0:00:54.4]} 25... Kg7 {[%clk 0:00:40.2]} 26. Bd5 {[%clk
0:00:54.4]} 26... Rf4 {[%clk 0:00:24]} 27. g3 {[%clk 0:00:50.3]} 27... Nd4
{[%clk 0:00:06.3]} 28. Ra6 {[%clk 0:00:34.3]} 28... Bf6 {[%clk 0:00:04.7]} 29.
gxf4 {[%clk 0:00:33.1]} 29... Nc2 {[%clk 0:00:01.4]} 30. Re4 {[%clk 0:00:31.2]}
1-0

[Event "Early-Titled-Tuesday-Blitz-February-06-2024"]
[Site "Chess.com"]
[Date "2024.02.06"]
[Round "8"]
[White "PedroGil25"]
[Black "TrompeterImEther"]
[Result "1-0"]
[WhiteElo "2422"]
[BlackElo "2529"]
[TimeControl "180+1"]
[EndTime "9:27:49 PST"]
[Termination "PedroGil25 won on time"]

1. e4 {[%clk 0:03:00.9]} 1... e5 {[%clk 0:02:59.3]} 2. Nf3 {[%clk 0:02:53.1]}
2... Nc6 {[%clk 0:02:59.5]} 3. Nc3 {[%clk 0:02:47.5]} 3... Nf6 {[%clk
0:02:58.8]} 4. Bb5 {[%clk 0:02:47.8]} 4... Bb4 {[%clk 0:02:54.2]} 5. O-O {[%clk
0:02:46.2]} 5... O-O {[%clk 0:02:53]} 6. d3 {[%clk 0:02:44]} 6... d6 {[%clk
0:02:45.7]} 7. Ne2 {[%clk 0:02:37]} 7... Ne7 {[%clk 0:02:44.7]} 8. c3 {[%clk
0:02:35.9]} 8... Ba5 {[%clk 0:02:44.8]} 9. Ng3 {[%clk 0:02:36.5]} 9... c6 {[%clk
0:02:44.9]} 10. Ba4 {[%clk 0:02:37.1]} 10... Ng6 {[%clk 0:02:45.2]} 11. d4
{[%clk 0:02:37.6]} 11... Qe7 {[%clk 0:02:43.3]} 12. Bc2 {[%clk 0:02:37.5]} 12...
Bc7 {[%clk 0:02:41.9]} 13. Re1 {[%clk 0:02:37.2]} 13... Be6 {[%clk 0:02:39.1]}
14. h3 {[%clk 0:02:33]} 14... Rad8 {[%clk 0:02:37.4]} 15. Qe2 {[%clk 0:02:17.6]}
15... Rfe8 {[%clk 0:02:35.6]} 16. Be3 {[%clk 0:02:12.9]} 16... d5 {[%clk
0:02:28.4]} 17. dxe5 {[%clk 0:02:02.7]} 17... Nxe5 {[%clk 0:02:28]} 18. Nxe5
{[%clk 0:02:03.4]} 18... Bxe5 {[%clk 0:02:28.3]} 19. f4 {[%clk 0:02:04]} 19...
Bc7 {[%clk 0:02:23.1]} 20. e5 {[%clk 0:02:04.5]} 20... Nd7 {[%clk 0:01:57.9]}
21. Nh5 {[%clk 0:02:00.4]} 21... f5 {[%clk 0:01:51.9]} 22. Rad1 {[%clk
0:01:34.7]} 22... g6 {[%clk 0:01:48.5]} 23. Ng3 {[%clk 0:01:34.5]} 23... Nf8
{[%clk 0:01:44.8]} 24. Qf2 {[%clk 0:01:35]} 24... b6 {[%clk 0:01:43.1]} 25. Ne2
{[%clk 0:01:34.7]} 25... c5 {[%clk 0:01:43.1]} 26. b4 {[%clk 0:01:31.9]} 26...
cxb4 {[%clk 0:01:40.4]} 27. cxb4 {[%clk 0:01:32.8]} 27... Qxb4 {[%clk
0:01:40.5]} 28. Bb3 {[%clk 0:01:33.1]} 28... d4 {[%clk 0:01:32.9]} 29. Nxd4
{[%clk 0:01:31.9]} 29... Bxb3 {[%clk 0:01:33.1]} 30. axb3 {[%clk 0:01:31.8]}
30... Rd5 {[%clk 0:01:17.8]} 31. Rc1 {[%clk 0:01:24.5]} 31... Qe7 {[%clk
0:01:13.6]} 32. Qf3 {[%clk 0:01:22.6]} 32... Rc5 {[%clk 0:01:07]} 33. Nc6 {[%clk
0:01:21.3]} 33... Rxc6 {[%clk 0:00:58.6]} 34. Qxc6 {[%clk 0:01:20.6]} 34... Ne6
{[%clk 0:00:59.2]} 35. Red1 {[%clk 0:01:17]} 35... Bb8 {[%clk 0:00:50.2]} 36.
Rd7 {[%clk 0:01:15.4]} 36... Qf8 {[%clk 0:00:50.2]} 37. Rb7 {[%clk 0:01:14.4]}
37... g5 {[%clk 0:00:42.8]} 38. Qd7 {[%clk 0:01:12.5]} 38... Ng7 {[%clk
0:00:34.1]} 39. e6 {[%clk 0:01:04.9]} 39... Bd6 {[%clk 0:00:15.9]} 40. Qf7+
{[%clk 0:00:59.3]} 40... Kh8 {[%clk 0:00:14.2]} 41. Bd4 {[%clk 0:00:59.5]} 41...
Be7 {[%clk 0:00:10.9]} 42. Rcc7 {[%clk 0:00:57.9]} 1-0

[Event "Early-Titled-Tuesday-Blitz-February-06-2024"]
[Site "Chess.com"]
[Date "2024.02.06"]
[Round "8"]
[White "LangesNasenhaar"]
[Black "NovozhilovSemen"]
[Result "1-0"]
[WhiteElo "2521"]
[BlackElo "2662"]
[TimeControl "180+1"]
[EndTime "9:27:50 PST"]
[Termination "LangesNasenhaar won by resignation"]

1. d4 {[%clk 0:03:00.9]} 1... Nf6 {[%clk 0:02:58.9]} 2. Bg5 {[%clk 0:03:00.9]}
2... e6 {[%clk 0:02:59.1]} 3. e4 {[%clk 0:03:00.7]} 3... h6 {[%clk 0:02:58.8]}
4. Bxf6 {[%clk 0:03:01.1]} 4... Qxf6 {[%clk 0:02:59.7]} 5. c3 {[%clk 0:03:01.8]}
5... d5 {[%clk 0:02:57.9]} 6. e5 {[%clk 0:03:00.5]} 6... Qd8 {[%clk 0:02:56.8]}
7. f4 {[%clk 0:02:59.3]} 7... Be7 {[%clk 0:02:56.5]} 8. Nf3 {[%clk 0:02:59.1]}
8... O-O {[%clk 0:02:56.6]} 9. Bd3 {[%clk 0:02:58.5]} 9... c5 {[%clk 0:02:56.5]}
10. a3 {[%clk 0:02:57.9]} 10... Nc6 {[%clk 0:02:56.4]} 11. b4 {[%clk 0:02:56.2]}
11... cxd4 {[%clk 0:02:56.5]} 12. cxd4 {[%clk 0:02:56.6]} 12... Bd7 {[%clk
0:02:56.9]} 13. Nbd2 {[%clk 0:02:52.9]} 13... b5 {[%clk 0:02:56.1]} 14. Rc1
{[%clk 0:02:42.8]} 14... a5 {[%clk 0:02:54.7]} 15. Bxb5 {[%clk 0:02:28.4]} 15...
Nxe5 {[%clk 0:02:53.7]} 16. Nxe5 {[%clk 0:02:21.7]} 16... Bxb5 {[%clk
0:02:52.1]} 17. a4 {[%clk 0:02:21.3]} 17... Be8 {[%clk 0:02:46.6]} 18. b5 {[%clk
0:02:21.1]} 18... Bb4 {[%clk 0:02:44.2]} 19. O-O {[%clk 0:02:15.5]} 19... Rc8
{[%clk 0:02:36.7]} 20. Nb3 {[%clk 0:02:03.8]} 20... f6 {[%clk 0:02:32]} 21. Nd3
{[%clk 0:01:51]} 21... Rc4 {[%clk 0:02:28]} 22. Ndc5 {[%clk 0:01:46.6]} 22...
Qb6 {[%clk 0:02:23]} 23. Qe2 {[%clk 0:01:38.4]} 23... Kf7 {[%clk 0:02:12]} 24.
Kh1 {[%clk 0:01:25.1]} 24... g6 {[%clk 0:01:47.7]} 25. Rxc4 {[%clk 0:01:23.6]}
25... dxc4 {[%clk 0:01:44.9]} 26. Qxc4 {[%clk 0:01:23.7]} 26... Qd6 {[%clk
0:01:42.7]} 27. Nb7 {[%clk 0:01:11.2]} 27... Qb6 {[%clk 0:01:36.6]} 28. N3c5
{[%clk 0:00:58]} 28... Ke7 {[%clk 0:01:27]} 29. d5 {[%clk 0:00:49.6]} 29... Bxc5
{[%clk 0:01:13]} 30. Nxc5 {[%clk 0:00:43.8]} 30... e5 {[%clk 0:01:10.6]} 31.
fxe5 {[%clk 0:00:41.4]} 31... fxe5 {[%clk 0:01:09.4]} 32. Rxf8 {[%clk
0:00:40.7]} 32... Kxf8 {[%clk 0:01:09.4]} 33. h3 {[%clk 0:00:35.2]} 33... Qd6
{[%clk 0:01:04.3]} 34. Ne4 {[%clk 0:00:28.8]} 34... Qb8 {[%clk 0:00:40.1]} 35.
Qc5+ {[%clk 0:00:23.8]} 35... Kf7 {[%clk 0:00:36.4]} 36. d6 {[%clk 0:00:23.4]}
36... Bd7 {[%clk 0:00:34]} 37. Qxe5 {[%clk 0:00:21.6]} 37... Be6 {[%clk
0:00:30.4]} 38. Qf6+ {[%clk 0:00:21.1]} 1-0

[Event "Early-Titled-Tuesday-Blitz-February-06-2024"]
[Site "Chess.com"]
[Date "2024.02.06"]
[Round "8"]
[White "chess_blitz00"]
[Black "javirec"]
[Result "1-0"]
[WhiteElo "2490"]
[BlackElo "2298"]
[TimeControl "180+1"]
[EndTime "9:27:50 PST"]
[Termination "chess_blitz00 won on time"]

1. Nf3 {[%clk 0:03:00.9]} 1... Nf6 {[%clk 0:02:52.6]} 2. e3 {[%clk 0:03:00.2]}
2... g6 {[%clk 0:02:45.7]} 3. b3 {[%clk 0:02:58.2]} 3... Bg7 {[%clk 0:02:44.9]}
4. Bb2 {[%clk 0:02:58.8]} 4... d6 {[%clk 0:02:43.9]} 5. Be2 {[%clk 0:02:59.4]}
5... e5 {[%clk 0:02:42.8]} 6. O-O {[%clk 0:02:59.4]} 6... O-O {[%clk 0:02:41.3]}
7. d4 {[%clk 0:02:58.6]} 7... e4 {[%clk 0:02:40.6]} 8. Nfd2 {[%clk 0:02:58.5]}
8... d5 {[%clk 0:02:40.9]} 9. c4 {[%clk 0:02:57.6]} 9... c6 {[%clk 0:02:41.2]}
10. Nc3 {[%clk 0:02:57.8]} 10... h5 {[%clk 0:02:21.4]} 11. Rc1 {[%clk
0:02:54.3]} 11... a6 {[%clk 0:02:05.9]} 12. cxd5 {[%clk 0:02:53.9]} 12... cxd5
{[%clk 0:02:05.9]} 13. Ba3 {[%clk 0:02:52.2]} 13... Re8 {[%clk 0:02:03.3]} 14.
Na4 {[%clk 0:02:51.6]} 14... Nc6 {[%clk 0:01:56.3]} 15. Bc5 {[%clk 0:02:45.8]}
15... b5 {[%clk 0:01:46.5]} 16. Nb6 {[%clk 0:02:41.2]} 16... Rb8 {[%clk
0:01:43.1]} 17. Nxc8 {[%clk 0:02:41.4]} 17... Rxc8 {[%clk 0:01:43.8]} 18. a4
{[%clk 0:02:41.2]} 18... Rb8 {[%clk 0:00:57.6]} 19. axb5 {[%clk 0:02:38.9]}
19... axb5 {[%clk 0:00:58.5]} 20. Ra1 {[%clk 0:02:38.5]} 20... Bf8 {[%clk
0:00:47.1]} 21. b4 {[%clk 0:02:37.1]} 21... Nxb4 {[%clk 0:00:39.3]} 22. Bxf8
{[%clk 0:02:35.8]} 22... Rxf8 {[%clk 0:00:38.4]} 23. Qb3 {[%clk 0:02:34.9]}
23... Qd6 {[%clk 0:00:22.3]} 24. Rfb1 {[%clk 0:02:28.8]} 24... Nd3 {[%clk
0:00:20.4]} 25. Bxd3 {[%clk 0:02:24.4]} 25... exd3 {[%clk 0:00:21.3]} 26. Qxd3
{[%clk 0:02:24.6]} 26... b4 {[%clk 0:00:20.7]} 27. Nf3 {[%clk 0:02:13.2]} 27...
Rfc8 {[%clk 0:00:17.7]} 28. Ne5 {[%clk 0:02:02.5]} 28... Ne4 {[%clk 0:00:17.2]}
29. f3 {[%clk 0:01:51.8]} 29... Rc3 {[%clk 0:00:15.9]} 30. Qe2 {[%clk
0:01:46.5]} 30... Nf6 {[%clk 0:00:14.2]} 31. Ra7 {[%clk 0:01:26.5]} 31... b3
{[%clk 0:00:11.5]} 32. Rxf7 {[%clk 0:01:14.5]} 32... Qb4 {[%clk 0:00:11.5]} 33.
Rxf6 {[%clk 0:01:09.6]} 33... b2 {[%clk 0:00:11.1]} 34. Rxg6+ {[%clk 0:01:08.8]}
34... Kh7 {[%clk 0:00:08.9]} 35. f4 {[%clk 0:01:03.4]} 35... Rc1+ {[%clk
0:00:08.7]} 36. Kf2 {[%clk 0:01:03.6]} 36... Rc2 {[%clk 0:00:03.5]} 37. Qxc2
{[%clk 0:01:01.6]} 37... Qb3 {[%clk 0:00:02.4]} 38. Rh6+ {[%clk 0:00:55.6]}
38... Kg8 {[%clk 0:00:01.2]} 39. Qg6+ {[%clk 0:00:55.4]} 1-0

[Event "Early-Titled-Tuesday-Blitz-February-06-2024"]
[Site "Chess.com"]
[Date "2024.02.06"]
[Round "8"]
[White "Iana_Shirova"]
[Black "ArturoCaceres"]
[Result "1-0"]
[WhiteElo "2304"]
[BlackElo "2471"]
[TimeControl "180+1"]
[EndTime "9:27:53 PST"]
[Termination "Iana_Shirova won by checkmate"]

1. e4 {[%clk 0:03:00.9]} 1... a6 {[%clk 0:02:56.4]} 2. d4 {[%clk 0:02:59.3]}
2... b5 {[%clk 0:02:57.3]} 3. a4 {[%clk 0:02:58.8]} 3... Bb7 {[%clk 0:02:58.2]}
4. Bd3 {[%clk 0:02:56.1]} 4... Nf6 {[%clk 0:02:57.6]} 5. Nd2 {[%clk 0:02:54.3]}
5... b4 {[%clk 0:02:47.9]} 6. Ngf3 {[%clk 0:02:53.7]} 6... e6 {[%clk 0:02:46.8]}
7. O-O {[%clk 0:02:53.2]} 7... c5 {[%clk 0:02:39.2]} 8. c4 {[%clk 0:02:52.5]}
8... bxc3 {[%clk 0:02:38.7]} 9. bxc3 {[%clk 0:02:52.3]} 9... d5 {[%clk
0:02:38.9]} 10. exd5 {[%clk 0:02:36.4]} 10... Nxd5 {[%clk 0:02:39.8]} 11. Bb2
{[%clk 0:02:14]} 11... cxd4 {[%clk 0:02:37.7]} 12. cxd4 {[%clk 0:02:04.1]} 12...
Be7 {[%clk 0:02:37.4]} 13. Nc4 {[%clk 0:01:57.8]} 13... O-O {[%clk 0:02:34.9]}
14. Nce5 {[%clk 0:01:56.1]} 14... Nd7 {[%clk 0:02:33.1]} 15. Nxd7 {[%clk
0:01:42.1]} 15... Qxd7 {[%clk 0:02:34]} 16. Ne5 {[%clk 0:01:42.5]} 16... Qd8
{[%clk 0:02:31.3]} 17. Qh5 {[%clk 0:01:42.4]} 17... g6 {[%clk 0:02:23.1]} 18.
Qd1 {[%clk 0:01:32.1]} 18... Nf4 {[%clk 0:02:21.9]} 19. Ba3 {[%clk 0:01:31]}
19... Bxg2 {[%clk 0:02:19.9]} 20. Re1 {[%clk 0:01:11.7]} 20... Bd5 {[%clk
0:02:15.7]} 21. Be4 {[%clk 0:00:58.8]} 21... Bxa3 {[%clk 0:02:04.8]} 22. Rxa3
{[%clk 0:00:57.7]} 22... Qe7 {[%clk 0:01:51.7]} 23. Rg3 {[%clk 0:00:54.5]} 23...
Bxe4 {[%clk 0:01:51.5]} 24. Rxe4 {[%clk 0:00:51.9]} 24... Nh5 {[%clk 0:01:52.1]}
25. Qxh5 {[%clk 0:00:49.3]} 25... Rab8 {[%clk 0:01:41.9]} 26. Rh4 {[%clk
0:00:39.4]} 26... Rb1+ {[%clk 0:01:38.1]} 27. Kg2 {[%clk 0:00:39.6]} 27... Qxh4
{[%clk 0:00:10.5]} 28. Qxh4 {[%clk 0:00:38.7]} 28... Rb4 {[%clk 0:00:11.4]} 29.
Qf6 {[%clk 0:00:37.3]} 29... Rxa4 {[%clk 0:00:11.4]} 30. Ng4 {[%clk 0:00:36.9]}
30... h5 {[%clk 0:00:10.6]} 31. Nh6+ {[%clk 0:00:34.4]} 31... Kh7 {[%clk
0:00:11.1]} 32. Nxf7 {[%clk 0:00:34.9]} 32... Ra5 {[%clk 0:00:08]} 33. Qxg6#
{[%clk 0:00:34.2]} 1-0

[Event "Early-Titled-Tuesday-Blitz-February-06-2024"]
[Site "Chess.com"]
[Date "2024.02.06"]
[Round "8"]
[White "Szparu"]
[Black "tetrix83"]
[Result "1-0"]
[WhiteElo "2833"]
[BlackElo "2589"]
[TimeControl "180+1"]
[EndTime "9:27:56 PST"]
[Termination "Szparu won on time"]

1. e4 {[%clk 0:03:00.9]} 1... c5 {[%clk 0:02:59.4]} 2. Nf3 {[%clk 0:02:57.4]}
2... e6 {[%clk 0:02:59.4]} 3. d4 {[%clk 0:02:57.3]} 3... cxd4 {[%clk 0:03:00.3]}
4. Nxd4 {[%clk 0:02:58]} 4... a6 {[%clk 0:03:00.3]} 5. c4 {[%clk 0:02:57.3]}
5... Qc7 {[%clk 0:03:00.1]} 6. Nc3 {[%clk 0:02:54.3]} 6... Nf6 {[%clk
0:03:00.4]} 7. a3 {[%clk 0:02:53.7]} 7... b6 {[%clk 0:02:58.4]} 8. Be3 {[%clk
0:02:51.7]} 8... Bb7 {[%clk 0:02:58.2]} 9. f3 {[%clk 0:02:52.2]} 9... d6 {[%clk
0:02:56.8]} 10. Qd2 {[%clk 0:02:51.5]} 10... Nbd7 {[%clk 0:02:56.6]} 11. Be2
{[%clk 0:02:51.2]} 11... Be7 {[%clk 0:02:56.6]} 12. O-O {[%clk 0:02:51.2]} 12...
O-O {[%clk 0:02:56.6]} 13. b4 {[%clk 0:02:48]} 13... Rfc8 {[%clk 0:02:56.1]} 14.
Rfc1 {[%clk 0:02:47.9]} 14... Qd8 {[%clk 0:02:55.7]} 15. Kh1 {[%clk 0:02:36]}
15... Rc7 {[%clk 0:02:47.1]} 16. Na4 {[%clk 0:02:31]} 16... Rb8 {[%clk
0:02:33.8]} 17. Nb3 {[%clk 0:02:25.7]} 17... Bc6 {[%clk 0:02:28.4]} 18. Nc3
{[%clk 0:02:21.9]} 18... Ba8 {[%clk 0:02:25.9]} 19. Rc2 {[%clk 0:02:15.5]} 19...
Ne5 {[%clk 0:02:21.9]} 20. Na4 {[%clk 0:02:10.5]} 20... Nfd7 {[%clk 0:02:20.4]}
21. Rac1 {[%clk 0:02:09.1]} 21... Rcc8 {[%clk 0:02:11.6]} 22. Bf1 {[%clk
0:02:04.4]} 22... Bc6 {[%clk 0:01:57.1]} 23. Nb2 {[%clk 0:02:03.6]} 23... Ba8
{[%clk 0:01:55]} 24. a4 {[%clk 0:02:00.4]} 24... Nf6 {[%clk 0:01:43.3]} 25. a5
{[%clk 0:01:59.2]} 25... bxa5 {[%clk 0:01:41.7]} 26. Nxa5 {[%clk 0:01:59.5]}
26... d5 {[%clk 0:01:39.7]} 27. cxd5 {[%clk 0:01:45.6]} 27... Rxc2 {[%clk
0:01:38.1]} 28. Qxc2 {[%clk 0:01:44.4]} 28... exd5 {[%clk 0:01:36.5]} 29. Bf4
{[%clk 0:01:25.7]} 29... Nfd7 {[%clk 0:01:31.2]} 30. exd5 {[%clk 0:01:18.7]}
30... Bxd5 {[%clk 0:01:27.7]} 31. Rd1 {[%clk 0:00:59.7]} 31... Rc8 {[%clk
0:00:59.6]} 32. Qd2 {[%clk 0:00:59.6]} 32... Be6 {[%clk 0:00:40.8]} 33. Bxa6
{[%clk 0:00:59.3]} 33... Rb8 {[%clk 0:00:33.3]} 34. Nd3 {[%clk 0:00:58.3]} 34...
Bxb4 {[%clk 0:00:16.5]} 35. Nxb4 {[%clk 0:00:40.8]} 35... Qxa5 {[%clk
0:00:16.9]} 36. Bxe5 {[%clk 0:00:41.6]} 36... Nxe5 {[%clk 0:00:15.6]} 37. Qd6
{[%clk 0:00:42.4]} 37... Qxb4 {[%clk 0:00:13.1]} 38. Qxb4 {[%clk 0:00:42.5]} 1-0

[Event "Early-Titled-Tuesday-Blitz-February-06-2024"]
[Site "Chess.com"]
[Date "2024.02.06"]
[Round "8"]
[White "kleopl"]
[Black "Vaibhavraut99"]
[Result "1-0"]
[WhiteElo "2542"]
[BlackElo "2702"]
[TimeControl "180+1"]
[EndTime "9:27:57 PST"]
[Termination "kleopl won by resignation"]

1. e4 {[%clk 0:03:00.9]} 1... c5 {[%clk 0:02:59.4]} 2. Nf3 {[%clk 0:03:00.1]}
2... Nc6 {[%clk 0:02:59.4]} 3. Bb5 {[%clk 0:02:53.8]} 3... e6 {[%clk 0:02:57.8]}
4. O-O {[%clk 0:02:53.2]} 4... Nge7 {[%clk 0:02:57.4]} 5. Re1 {[%clk 0:02:53.4]}
5... g6 {[%clk 0:02:57]} 6. d4 {[%clk 0:02:51.8]} 6... cxd4 {[%clk 0:02:57.9]}
7. Nxd4 {[%clk 0:02:52]} 7... Bg7 {[%clk 0:02:57.4]} 8. Be3 {[%clk 0:02:46]}
8... O-O {[%clk 0:02:55.6]} 9. Nc3 {[%clk 0:02:44.7]} 9... d5 {[%clk 0:02:55.3]}
10. exd5 {[%clk 0:02:42.9]} 10... exd5 {[%clk 0:02:54.9]} 11. h3 {[%clk
0:02:32.2]} 11... a6 {[%clk 0:02:51.9]} 12. Ba4 {[%clk 0:02:27.1]} 12... Nxd4
{[%clk 0:02:38.5]} 13. Bxd4 {[%clk 0:02:24.8]} 13... Be6 {[%clk 0:02:38]} 14.
Bb3 {[%clk 0:02:19.1]} 14... Bxd4 {[%clk 0:02:33.8]} 15. Qxd4 {[%clk 0:02:18.3]}
15... Nf5 {[%clk 0:02:34.5]} 16. Qe5 {[%clk 0:02:13.8]} 16... Rc8 {[%clk
0:01:37]} 17. Rad1 {[%clk 0:02:06.5]} 17... Re8 {[%clk 0:01:23.5]} 18. Nxd5
{[%clk 0:01:33.1]} 18... Bxd5 {[%clk 0:01:20.7]} 19. Qxe8+ {[%clk 0:01:32.6]}
19... Qxe8 {[%clk 0:01:21.6]} 20. Rxe8+ {[%clk 0:01:32.7]} 20... Rxe8 {[%clk
0:01:22.3]} 21. Bxd5 {[%clk 0:01:32.9]} 21... Rc8 {[%clk 0:01:19.1]} 22. c3
{[%clk 0:01:23]} 22... b5 {[%clk 0:01:16.2]} 23. Bb7 {[%clk 0:01:17.3]} 23...
Rb8 {[%clk 0:01:16.4]} 24. Bxa6 {[%clk 0:01:12.6]} 24... b4 {[%clk 0:01:17.3]}
25. cxb4 {[%clk 0:01:09.1]} 25... Rxb4 {[%clk 0:01:16.7]} 26. b3 {[%clk
0:01:09.3]} 26... h5 {[%clk 0:01:15.2]} 27. Bc4 {[%clk 0:01:08.3]} 27... Rb8
{[%clk 0:01:13.5]} 28. Rd7 {[%clk 0:01:06.3]} 28... Nh6 {[%clk 0:01:10.1]} 29.
a4 {[%clk 0:01:05]} 29... Kf8 {[%clk 0:01:04.3]} 30. a5 {[%clk 0:01:04.5]} 30...
Ke8 {[%clk 0:01:01.8]} 31. Ra7 {[%clk 0:00:57.1]} 31... Rd8 {[%clk 0:00:50]} 32.
a6 {[%clk 0:00:56.5]} 32... h4 {[%clk 0:00:34.3]} 33. Bb5+ {[%clk 0:00:46]}
33... Kf8 {[%clk 0:00:33.6]} 34. Rd7 {[%clk 0:00:46.2]} 34... Rc8 {[%clk
0:00:31.9]} 35. a7 {[%clk 0:00:43.6]} 35... Nf5 {[%clk 0:00:25.5]} 36. Bc6
{[%clk 0:00:37.3]} 36... Ke8 {[%clk 0:00:16.4]} 37. Rc7+ {[%clk 0:00:33.5]} 1-0